Workbook

Sheet Summary
B2: CASE STUDY 2
B3: Natural Capital Case Study for GIZ Workshop
B4: The Objective: A case to study to demonstrate the financial implications of natural capital management and how natural capital data can be integrated into financial models
B7: The Story: Two companies in the soyabean production sector in Brazil, with different strategic approaches to sustainability, are increasingly differentiated because natural capital is impacting their financial performance and stability. You are the CEO of Company A. You are provided with a series of management decisions about natural capital and the tool will quantify the financial implications based on your strategic decisions. Your goal is to outperform Company B in this monetised assessment.
B9: Strategic performance review: the dominant natural capital risks and opportunities fall within eight categories. 1) Market 2) Reputation 3) Operations 4) Climate 5) Policy/Regulation 6) Customer Loyalty 7) Resource Depletion 8) Subsidies The financial implications of each are not limited to one line item, but instead can have varying effects on profitability. The tool attempts to isolate those that are most influencial.
B11: Key takeaways: this tool is intended to provide an interactive and dynamic introduction to integrating natural capital information into the financial analysis of soyabean producers. The framework should allow both credit and equity investors to contextualise their concerns about the environment through financial interpretation of their investment/client's natural capital impact.
A15: By Aaron Re'em

Sheet Natural Capital Indicators
C2: Natural Capital Case Study for GIZ
C3: Annotated Income Statement
C4: Review the simplified income statement to understand how natural capital can affect financial performance.
D10: Producer A | E10: Dec '13
E11: BRL million
D12: Sales | E12: 900.56
D13: Cost of Goods Sold (COGS) incl. D&A | E13: =SUM(E14:E15) -> 769.363
D14: COGS excluding D&A | E14: 710.452
D15: Depreciation & Amortization Expense | E15: 58.911
D16: Gross Income | E16: =E12-E13 -> 131.197
D17: SG&A Expense | E17: 15.924
D18: Other Operating Expense | E18: 12.23
D19: EBIT (Operating Income) | E19: =E16-SUM(E17:E18) -> 103.043
D20: Interest Expense | E20: =500*0.06812 -> 34.06
D21: Fixed Assets Impairment | E21: 51.13100052
D22: Pretax Income | E22: =E19-SUM(E20:E21) -> 17.85199948
D23: Income Taxes | E23: =E22*0.25 -> 4.46299987
D24: Net Income | E24: =E22-E23 -> 13.38899961
D26: EPS | E26: =E24/E27 -> 0.1338899961
D27: Total Shares Outstanding (million) | E27: 100

Sheet Internalisation factors
B2: Natural Capital Case Study for GIZ
B3: Select the relevant sustainability strategy decision under each of the eight categories then move to the "financial implications" tab to see the outcome of your decisions
B4: Soybean Producer A Sustainability Strategy
B5: Market | C5: ='Data tables'!C4 -> Outcome | D5: ='Data tables'!D4 -> Financial Implication
A6: CHOOSE FROM GREEN DROPDOWNS | B6: Did not pursue RTRS certification | C6: =IFERROR(VLOOKUP(B6,'Data tables'!$B$5:$D$7,2,0),"") -> Loses out on additional sales to developed country clients with resonsible soyabean supply chain initiatives. | D6: =IFERROR(VLOOKUP(B6,'Data tables'!$B$6:$D$7,3,0),"") -> No additional sales | G6: =VLOOKUP(B6,'Data tables'!$B$4:$G$35,4,0) -> Sales | H6: =VLOOKUP(B6,'Data tables'!$B$4:$G$35,6,0) -> 0
B7: Reputation | G7: =VLOOKUP(B7,'Data tables'!$B$4:$G$35,4,0) -> 0 | H7: =VLOOKUP(B7,'Data tables'!$B$4:$G$35,6,0) -> 0
B8: Recent deforestation picked up by NGO and campaign reaches US press. | C8: =IFERROR(VLOOKUP(B8,'Data tables'!$B$9:$D$11,2,0),"") -> North American customers demand short term contracts with assurances that better land management practices will be implemented. | D8: =IFERROR(VLOOKUP(B8,'Data tables'!$B$9:$D$11,3,0),"") -> Business risk levels rise and interest rates grow by 1.5%. | G8: =VLOOKUP(B8,'Data tables'!$B$4:$G$35,4,0) -> Interest expense | H8: =VLOOKUP(B8,'Data tables'!$B$4:$G$35,6,0) -> 7.5
B9: Operations | G9: =VLOOKUP(B9,'Data tables'!$B$4:$G$35,4,0) -> 0 | H9: =VLOOKUP(B9,'Data tables'!$B$4:$G$35,6,0) -> 0
B10: Solar power used to provide electricity to stationary machinery and biodiesel takes advantage of subsidized sugar cane and soyabean derivative fuels. | C10: =IFERROR(VLOOKUP(B10,'Data tables'!$B$13:$D$15,2,0),"") -> Diversifies power sources and reduces dependence on generators. The biofuels use also improve local air quality. Short term increase in capital expenditure, but IRR is just three years. Green loans are provided by the bank, with savings in first three years paid as interest. | D10: =IFERROR(VLOOKUP(B10,'Data tables'!$B$13:$D$15,3,0),"") -> No short term costs or income, but after three years cost savings realised. | G10: =VLOOKUP(B10,'Data tables'!$B$4:$G$35,4,0) -> COGS excluding D&A | H10: =VLOOKUP(B10,'Data tables'!$B$4:$G$35,6,0) -> 0
B11: Climate | G11: =VLOOKUP(B11,'Data tables'!$B$4:$G$35,4,0) -> 0 | H11: =VLOOKUP(B11,'Data tables'!$B$4:$G$35,6,0) -> 0
B12: Drought cause reduced yield | C12: =IFERROR(VLOOKUP(B12,'Data tables'!$B$17:$D$19,2,0),"") -> Production falls 12%, but prices rise marginally in the market. | D12: =IFERROR(VLOOKUP(B12,'Data tables'!$B$17:$D$19,3,0),"") -> Sales fall 10% | G12: =VLOOKUP(B12,'Data tables'!$B$4:$G$35,4,0) -> Sales | H12: =VLOOKUP(B12,'Data tables'!$B$4:$G$35,6,0) -> -90.056
B13: Policy/Regulation | G13: =VLOOKUP(B13,'Data tables'!$B$4:$G$35,4,0) -> 0 | H13: =VLOOKUP(B13,'Data tables'!$B$4:$G$35,6,0) -> 0
B14: Company audited for its crop locations, which are all in well environmentally managed regions | C14: =IFERROR(VLOOKUP(B14,'Data tables'!$B$21:$D$23,2,0),"") -> Banks are seeking new soyabeen farming clients and offer reduced rates to attract business. | D14: =IFERROR(VLOOKUP(B14,'Data tables'!$B$21:$D$23,3,0),"") -> Interest rates fall 0.25% | G14: =VLOOKUP(B14,'Data tables'!$B$4:$G$35,4,0) -> Interest Expense | H14: =VLOOKUP(B14,'Data tables'!$B$4:$G$35,6,0) -> -1.25
B15: Customer Loyalty | G15: =VLOOKUP(B15,'Data tables'!$B$4:$G$35,4,0) -> 0 | H15: =VLOOKUP(B15,'Data tables'!$B$4:$G$35,6,0) -> 0
B16: Attains CRS certification | C16: =IFERROR(VLOOKUP(B16,'Data tables'!$B$26:$D$27,2,0),"") -> European soy milk importer rejects pitch from US competitor producer signs three year contract. | D16: =IFERROR(VLOOKUP(B16,'Data tables'!$B$26:$D$27,3,0),"") -> Interest payments fall by 1% as risks are reduced. | G16: =VLOOKUP(B16,'Data tables'!$B$4:$G$35,4,0) -> Interest Expense | H16: =VLOOKUP(B16,'Data tables'!$B$4:$G$35,6,0) -> -5
B17: Resource Depletion | G17: =VLOOKUP(B17,'Data tables'!$B$4:$G$35,4,0) -> 0 | H17: =VLOOKUP(B17,'Data tables'!$B$4:$G$35,6,0) -> 0
B18: Rotational programme used | C18: =IFERROR(VLOOKUP(B18,'Data tables'!$B$29:$D$31,2,0),"") -> No additional operational cost | D18: =IFERROR(VLOOKUP(B18,'Data tables'!$B$29:$D$31,3,0),"") -> Supply shortfall increases average price by 1% | G18: =VLOOKUP(B18,'Data tables'!$B$4:$G$35,4,0) -> Sales | H18: =VLOOKUP(B18,'Data tables'!$B$4:$G$35,6,0) -> 9.0056
B19: Subsidies | G19: =VLOOKUP(B19,'Data tables'!$B$4:$G$35,4,0) -> 0 | H19: =VLOOKUP(B19,'Data tables'!$B$4:$G$35,6,0) -> 0
B20: Government grants accepted by producer to replant forests on arable land. | C20: =IFERROR(VLOOKUP(B20,'Data tables'!$B$33:$D$35,2,0),"") -> Grant covers any losses from non-farmed hectares. Tree cover increases nitrogen and potassium in soil, while also improving soil water content. | D20: =IFERROR(VLOOKUP(B20,'Data tables'!$B$33:$D$35,3,0),"") -> Yields increase 10%. | G20: =VLOOKUP(B20,'Data tables'!$B$4:$G$35,4,0) -> Sales | H20: =VLOOKUP(B20,'Data tables'!$B$4:$G$35,6,0) -> 90.056

Sheet Data tables (hidden)
B4: Market | C4: Outcome | D4: Financial Implication | F4: Data | G4: Financial statement impact
B6: Attains RTRS certification | C6: Opens access to premium prices across all European and North American markets. | D6: Soya sales price rise on average 2% across the board. | E6: Sales | F6: 0.02 | G6: =VLOOKUP(E6,'Natural Capital Indicators'!$D$12:$E$24,2,0)*F6 -> 18.0112
B7: Did not pursue RTRS certification | C7: Loses out on additional sales to developed country clients with resonsible soyabean supply chain initiatives. | D7: No additional sales | E7: Sales | F7: 0 | G7: =VLOOKUP(E7,'Natural Capital Indicators'!$D$12:$E$24,2,0)*F7 -> 0
B8: Reputation
B10: Recent deforestation picked up by NGO and campaign reaches US press. | C10: North American customers demand short term contracts with assurances that better land management practices will be implemented. | D10: Business risk levels rise and interest rates grow by 1.5%. | E10: Interest expense | F10: 0.015 | G10: =500*F10 -> 7.5
B11: NGO engagement and collaborative sustainability programmes positions the company amongst global natural capital management leaders. | C11: Growing relationships developed with NGOs and downstream sustainable procurement teams. Reputation grows with prospects for new green clients. | D11: No additional sales achieved, but strategic relationships promise future income. NGO support enforces client views of the company's sustainable practices. | E11: Sales | F11: 0 | G11: =VLOOKUP(E11,'Natural Capital Indicators'!$D$12:$E$24,2,0)*F11 -> 0
B12: Operations
B14: Solar power used to provide electricity to stationary machinery and biodiesel takes advantage of subsidized sugar cane and soyabean derivative fuels. | C14: Diversifies power sources and reduces dependence on generators. The biofuels use also improve local air quality. Short term increase in capital expenditure, but IRR is just three years. Green loans are provided by the bank, with savings in first three years paid as interest. | D14: No short term costs or income, but after three years cost savings realised. | E14: COGS excluding D&A | F14: 0 | G14: =VLOOKUP(E14,'Natural Capital Indicators'!$D$12:$E$24,2,0)*F14 -> 0
B15: Continue to buy electricity from the grid and run mobile machinery on diesel oil. | C15: Exposure to oil market prices are muted because of subsidy, but Brazilian governments seek to reduce agricultural dependence on fuel subsidies. | D15: No short term changes in costs or income, but after three years cost will increase. | E15: COGS excluding D&A | F15: 0 | G15: =VLOOKUP(E15,'Natural Capital Indicators'!$D$12:$E$24,2,0)*F15 -> 0
B16: Climate
B18: Drought cause reduced yield | C18: Production falls 12%, but prices rise marginally in the market. | D18: Sales fall 10% | E18: Sales | F18: -0.1 | G18: =VLOOKUP(E18,'Natural Capital Indicators'!$D$12:$E$24,2,0)*F18 -> -90.056
B19: ISO 9001 practices increase water efficiency and reduce drought's impact | C19: Production falls 3%, but prices remain constant. | D19: Sales fall 3% | E19: Sales | F19: -0.03 | G19: =VLOOKUP(E19,'Natural Capital Indicators'!$D$12:$E$24,2,0)*F19 -> -27.0168
B20: Policy/Regulation
B22: Plantation found to be encroaching on Amazon rainforest. | C22: Financing the company puts banks in breach of Brazilian Central Bank regulations. | D22: Fines increase costs by BRL10 million | E22: Other Operating Expense | F22: 10 | G22: =F22 -> 10
B23: Company audited for its crop locations, which are all in well environmentally managed regions | C23: Banks are seeking new soyabeen farming clients and offer reduced rates to attract business. | D23: Interest rates fall 0.25% | E23: Interest Expense | F23: -0.0025 | G23: =500*F23 -> -1.25
B24: Customer Loyalty
B26: Attains CRS certification | C26: European soy milk importer rejects pitch from US competitor producer signs three year contract. | D26: Interest payments fall by 1% as risks are reduced. | E26: Interest Expense | F26: -0.01 | G26: =500*F26 -> -5
B27: Did not pursue CRS certification | C27: Lose out to competing US bid and fail to renew contract with long standing client. | D27: Lose 10% annual revenue as significant client is lost. | E27: Sales | F27: -0.1 | G27: =VLOOKUP(E27,'Natural Capital Indicators'!$D$12:$E$24,2,0)*F27 -> -90.056
B28: Resource Depletion
B30: Intensive agricultural practices desertify land and soil fertility declines | C30: Farmers apply fertilisers in greater quantity | D30: Fertilizer costs grow 40% | E30: COGS excluding D&A | F30: 0.4 | G30: =VLOOKUP(E30,'Natural Capital Indicators'!$D$12:$E$24,2,0)*F30*'Cost breakdown - soybean produc'!C25 -> 21.71294315
B31: Rotational programme used | C31: No additional operational cost | D31: Supply shortfall increases average price by 1% | E31: Sales | F31: 0.01 | G31: =VLOOKUP(E31,'Natural Capital Indicators'!$D$12:$E$24,2,0)*F31 -> 9.0056
B32: Subsidies
B34: Government grants accepted by producer to replant forests on arable land. | C34: Grant covers any losses from non-farmed hectares. Tree cover increases nitrogen and potassium in soil, while also improving soil water content. | D34: Yields increase 10%. | E34: Sales | F34: 0.1 | G34: =VLOOKUP(E34,'Natural Capital Indicators'!$D$12:$E$24,2,0)*F34 -> 90.056
B35: Government grant rejected by producer, who instead plants sugarcane. | C35: Heavy rain washes away soil and nutrients on plantations sited on flood plains. | D35: Yields decrease 5%. | E35: Sales | F35: -0.05 | G35: =VLOOKUP(E35,'Natural Capital Indicators'!$D$12:$E$24,2,0)*F35 -> -45.028

Sheet Cost breakdown - soybean produc (hidden)
A2: Crop Inputs | B2: Seed | C2: 11.16 | D2: =C2/SUM($C$2:$C$19) -> 0.07363420428
A3: Crop Inputs | B3: Fertilizer and lime | C3: 11.58 | D3: =C3/SUM($C$2:$C$19) -> 0.07640538401
A4: Crop Inputs | B4: Herbicide | C4: 12.5 | D4: 0.08247558723
A5: Crop Inputs | B5: Crop insurance | C5: 1.57 | D5: 0.01035893376
A6: Crop Inputs | B6: Miscellaneous and interest | C6: 5.42 | D6: 0.03576141462
A7: Machinery and Labor | B7: Apply nitrogen | C7: 6.7 | D7: 0.04420691475
A8: Machinery and Labor | B8: Chisel plow | C8: 10.55 | D8: 0.06960939562
A9: Machinery and Labor | B9: Tandem disk | C9: 7.95 | D9: 0.05245447348
A10: Machinery and Labor | B10: Field cultivate | C10: 7.85 | D10: 0.05179466878
A11: Machinery and Labor | B11: Plant | C11: 11.35 | D11: 0.0748878332
A12: Machinery and Labor | B12: Cultivate | C12: 6.65 | D12: 0.0438770124
A13: Machinery and Labor | B13: Spray | C13: 4.6 | D13: 0.0303510161
A14: Machinery and Labor | B14: Combine | C14: 23.65 | D14: 0.156043811
A15: Machinery and Labor | B15: Haul and store | C15: 4.05 | D15: 0.02672209026
A16: Machinery and Labor | B16: Haul to market | C16: 4.5 | D16: 0.0296912114
A17: Machinery and Labor | B17: Nonfield Labor | C17: 10 | D17: 0.06598046978
A18: Storage | B18: Storage | C18: 2.7 | D18: 0.01781472684
A19: Management | B19: Management (5% of other costs) | C19: 8.78 | D19: 0.05793085247
B22: Cost structure for soy production
B23: Cost | C23: Percentage
B24: Seed | C24: 0.07363420428
B25: Fertilizer and lime | C25: 0.07640538401
B26: Herbicide | C26: 0.08247558723
B27: Crop insurance | C27: 0.01035893376
B28: Miscellaneous and interest | C28: 0.03576141462
B29: Machinery and Labor | C29: 0.6456188968
B30: Storage | C30: 0.01781472684
B31: Management | C31: 0.05793085247

Sheet Financial implications
B3: Natural Capital Case Study for GIZ
B5: Income Statement Producer A | C5: Dec '13 | G5: Income Statement Producer B | H5: Dec '13
C6: In BRL million | H6: In BRL million
B7: Sales | C7: ='Natural Capital Indicators'!E12+SUMIF('Internalisation factors'!$G$6:$G$20,'Financial implications'!B7,'Internalisation factors'!$H$6:$H$20) -> 909.5656 | G7: Sales | H7: ='Natural Capital Indicators'!E12 -> 900.56
B8: Cost of Goods Sold (COGS) incl. D&A | C8: =SUM(C9:C10) -> 769.363 | G8: Cost of Goods Sold (COGS) incl. D&A | H8: ='Natural Capital Indicators'!E13 -> 769.363
B9: COGS excluding D&A | C9: ='Natural Capital Indicators'!E14+SUMIF('Internalisation factors'!$G$6:$G$20,'Financial implications'!B9,'Internalisation factors'!$H$6:$H$20) -> 710.452 | G9: COGS excluding D&A | H9: ='Natural Capital Indicators'!E14 -> 710.452
B10: Depreciation & Amortization Expense | C10: ='Natural Capital Indicators'!E15+SUMIF('Internalisation factors'!$G$6:$G$20,'Financial implications'!B10,'Internalisation factors'!$H$6:$H$20) -> 58.911 | G10: Depreciation & Amortization Expense | H10: ='Natural Capital Indicators'!E15 -> 58.911
B11: Gross Income | C11: =C7-C8 -> 140.2026 | G11: Gross Income | H11: ='Natural Capital Indicators'!E16 -> 131.197
B12: SG&A Expense | C12: ='Natural Capital Indicators'!E17+SUMIF('Internalisation factors'!$G$6:$G$20,'Financial implications'!B12,'Internalisation factors'!$H$6:$H$20) -> 15.924 | G12: SG&A Expense | H12: ='Natural Capital Indicators'!E17 -> 15.924
B13: Other Operating Expense | C13: ='Natural Capital Indicators'!E18+SUMIF('Internalisation factors'!$G$6:$G$20,'Financial implications'!B13,'Internalisation factors'!$H$6:$H$20) -> 12.23 | G13: Other Operating Expense | H13: ='Natural Capital Indicators'!E18 -> 12.23
B14: EBIT (Operating Income) | C14: =C11-SUM(C12:C13) -> 112.0486 | G14: EBIT (Operating Income) | H14: ='Natural Capital Indicators'!E19 -> 103.043
B15: Interest Expense | C15: ='Natural Capital Indicators'!E20+SUMIF('Internalisation factors'!$G$6:$G$20,'Financial implications'!B15,'Internalisation factors'!$H$6:$H$20) -> 35.31 | G15: Interest Expense | H15: =500*0.06812 -> 34.06
B16: Fixed Assets Impairment | C16: ='Natural Capital Indicators'!E21 -> 51.13100052 | G16: Fixed Assets Impairment | H16: ='Natural Capital Indicators'!E21 -> 51.13100052
B17: Pretax Income | C17: =C14-SUM(C15:C16) -> 25.60759948 | G17: Pretax Income | H17: ='Natural Capital Indicators'!E22 -> 17.85199948
B18: Income Taxes | C18: =C17*0.25 -> 6.40189987 | G18: Income Taxes | H18: =H17*0.25 -> 4.46299987
B19: Net Income | C19: =C17-C18 -> 19.20569961 | G19: Net Income | H19: =H17-H18 -> 13.38899961
B21: EPS (recurring) | C21: =C19/C22 -> 0.1920569961 | G21: EPS (recurring) | H21: =H19/H22 -> 0.1338899961
B22: Total Shares Outstanding | C22: 100 | G22: Total Shares Outstanding (million) | H22: 100
B24: Comments on the financial implications of sustainable strategies
B25: =IF(C7>H7,"Producer A manages its natural capital dependence such that it can maintain good yield and capitalise on a market premium for sustainable soyabeans.","Producer B manages its natural capital dependence such that it can maintain good yield and capitalise on a market premium for sustainable soyabeans.") -> Producer A manages its natural capital dependence such that it can maintain good yield and capitalise on a market premium for sustainable soyabeans.
B27: =IF(C9>H9,"Producer A has lower costs than Producer B because it pursues sustainable energy and land management strategies.","Producer B has lower costs than Producer A because it pursues sustainable energy and land management strategies.") -> Producer B has lower costs than Producer A because it pursues sustainable energy and land management strategies.
B29: =IF(C14>H14,"Producer A has a higher operating income than Producer B as yield growth and sales strategy outstrips cost increases.","Producer B has a higher operating income than Producer A as yield growth and sales strategy outstrips cost increases.") -> Producer A has a higher operating income than Producer B as yield growth and sales strategy outstrips cost increases.
B31: =IF(C15>H15,"Creditors reward Producer B with lower interest rates because the company locks in longer term contracts through its commitment to meeting clients' sustainable supply chain mandates.","Creditors reward Producer A with lower interest rates because the company locks in longer term contracts through its commitment to meeting clients' sustainable supply chain mandates.") -> Creditors reward Producer B with lower interest rates because the company locks in longer term contracts through its commitment to meeting clients' sustainable supply chain mandates.
B33: =IF(C14/C15>H14/H15,"Current debt burden is lower for Producer A, which is demonstrated by its higher interest coverage [EBIT/Interest Expense].","Current debt burden is lower for Producer A, which is demonstrated by its higher interest coverage [EBIT/Interest Expense].") -> Current debt burden is lower for Producer A, which is demonstrated by its higher interest coverage [EBIT/Interest Expense].
